bitfinex/quotes_BTCUSD_20251031
["timestamp","ask_amount","ask_price","bid_price","bid_amount"]
[1761873776581,1.09895097,109950.0,109940.0,1e-08]
[1761873779538,1.09895097,109950.0,109940.0,0.00022156]
[1761873781063,1.09895097,109950.0,109940.0,1e-08]
[1761873781613,1.09895097,109950.0,109890.0,0.0004]
[1761873781615,0.18259395,109930.0,109890.0,0.0004]
[1761873781872,0.97037244,109900.0,109890.0,0.00048768]
[1761873782085,1.09637373,109900.0,109890.0,0.00048768]
[1761873782292,0.70316932,109900.0,109890.0,0.00048768]
[1761873782874,0.70316932,109900.0,109890.0,1e-08]
[1761873783654,1.09903373,109900.0,109890.0,1e-08]
[1761873784343,1.10804617,109900.0,109890.0,1e-08]
[1761873785221,0.18200018,109890.0,109880.0,1e-08]
[1761873785558,1.09705029,109890.0,109880.0,0.00014497]
[1761873786149,0.18204988,109860.0,109850.0,0.0004]
[1761873786363,0.16789884,109860.0,109850.0,0.00054503]
[1761873786578,0.16789884,109860.0,109850.0,0.02880503]
[1761873787176,0.16789884,109860.0,109850.0,0.00054503]
[1761873787177,0.56242325,109860.0,109850.0,0.00054503]
[1761873787582,0.95628766,109860.0,109850.0,0.00054503]
[1761873787898,0.56242325,109860.0,109850.0,0.00054503]
[1761873788547,0.56242325,109860.0,109850.0,0.00454503]
[1761873788751,0.56242325,109860.0,109850.0,0.00654503]
[1761873789351,0.16789884,109860.0,109850.0,0.00654503]
[1761873789525,0.16789884,109860.0,109850.0,0.11862404]
[1761873789746,0.18204988,109860.0,109850.0,0.16398404]
[1761873791551,0.18204988,109860.0,109850.0,0.16798404]
[1761873791870,0.18204988,109860.0,109850.0,0.16898404]
[1761873792069,0.18204988,109860.0,109850.0,0.12362404]
[1761873792293,0.18204988,109860.0,109850.0,0.12461958]
[1761873792663,0.18204988,109860.0,109850.0,0.12661958]
[1761873792862,0.18204988,109860.0,109850.0,0.09835958]
[1761873793067,0.18204412,109880.0,109850.0,0.17197958]
[1761873793296,0.18200018,109890.0,109870.0,0.73987753]
[1761873793489,0.1910828,109900.0,109880.0,0.36826]
[1761873793689,0.1910828,109900.0,109890.0,0.02852]
[1761873794033,0.1910828,109900.0,109890.0,0.48054901]
[1761873794411,0.1910828,109900.0,109890.0,0.42981901]
[1761873794613,0.1910828,109900.0,109890.0,0.08981901]
[1761873794819,0.1910828,109900.0,109890.0,0.08996404]
[1761873795019,0.1910828,109900.0,109890.0,0.00014503]
[1761873795222,0.87950033,109900.0,109890.0,0.00214503]
[1761873796282,0.87950033,109900.0,109890.0,0.00314503]
[1761873796599,0.87950033,109900.0,109890.0,0.00214503]
[1761873797071,0.87950033,109900.0,109890.0,0.00014503]
[1761873798299,0.1910828,109900.0,109890.0,0.00014503]
[1761873800633,0.1920828,109900.0,109890.0,0.00014503]
[1761873801023,0.1910828,109900.0,109890.0,0.00014503]
[1761873801465,0.1920828,109900.0,109890.0,0.00014503]
[1761873804059,0.88050033,109900.0,109890.0,0.00014503]
[1761873804703,0.1920828,109900.0,109890.0,0.00014503]
[1761873806805,0.88050033,109900.0,109890.0,0.00125326]
[1761873809610,0.97031934,109900.0,109890.0,0.00125326]
[1761873809815,1.00650162,109900.0,109890.0,0.00125326]
[1761873811296,0.97031934,109900.0,109890.0,0.00125326]
[1761873811472,1.07060473,109900.0,109890.0,0.00125326]
[1761873813543,0.97043494,109900.0,109890.0,0.00125326]
[1761873815946,0.1920828,109900.0,109890.0,0.00125326]
[1761873817508,0.63998528,109900.0,109890.0,0.00125326]
[1761873818272,1.06980429,109900.0,109890.0,0.00125326]
[1761873819827,1.06980429,109900.0,109850.0,0.40491]
[1761873819828,0.18203331,109870.0,109850.0,0.40491]
[1761873820044,0.16722337,109870.0,109860.0,0.16003901]
[1761873820726,0.19114534,109880.0,109860.0,1.14819635]
[1761873820933,0.19114534,109880.0,109870.0,0.09116]
[1761873821148,0.19114534,109880.0,109870.0,0.18097901]
[1761873822225,0.18203861,109890.0,109870.0,0.36501232]
[1761873822434,0.18201674,109880.0,109870.0,0.24727331]
[1761873822813,0.18201674,109880.0,109870.0,0.27519331]
[1761873823021,0.1910828,109900.0,109880.0,0.18201674]
[1761873823191,0.1910828,109900.0,109890.0,0.04886]
[1761873823414,0.1910828,109900.0,109890.0,0.09116]
[1761873824010,0.1910828,109900.0,109890.0,0.18097901]
[1761873824226,0.1920828,109900.0,109890.0,0.19917902]
[1761873824438,0.1920828,109900.0,109890.0,0.18097901]
[1761873825308,0.1920828,109900.0,109890.0,0.18297901]
[1761873825725,0.1910828,109900.0,109890.0,0.18297901]
[1761873826142,0.1910828,109900.0,109890.0,0.18497901]
[1761873826561,0.1910828,109900.0,109890.0,0.36697919]
[1761873826793,0.1910828,109900.0,109890.0,0.18497901]
[1761873827591,0.1910828,109900.0,109890.0,0.52497901]
[1761873827778,0.1910828,109900.0,109890.0,0.70697919]
[1761873828003,0.1910828,109900.0,109890.0,0.52497901]
[1761873829296,0.1910828,109900.0,109890.0,0.48267901]
[1761873829923,0.1910828,109900.0,109890.0,0.52216901]
[1761873830617,0.1910828,109900.0,109890.0,0.48267901]
[1761873832695,0.1910828,109900.0,109890.0,0.52216901]
[1761873833022,0.1910828,109900.0,109890.0,0.48267901]
[1761873833432,0.1910828,109900.0,109890.0,0.87671802]
[1761873833635,0.1910828,109900.0,109890.0,0.91620802]
[1761873834260,0.1910828,109900.0,109890.0,0.52216901]
[1761873834453,0.1910828,109900.0,109890.0,0.91620802]
[1761873835312,0.1910828,109900.0,109890.0,1.0982082]
[1761873835748,0.1910828,109900.0,109890.0,0.52216901]
[1761873836004,0.1910828,109900.0,109890.0,0.91620802]
[1761873836915,0.1910828,109900.0,109890.0,0.52216901]
[1761873837228,0.1910828,109900.0,109890.0,0.91620802]
[1761873837452,0.18247787,109910.0,109890.0,0.91620802]
[1761873837604,0.18247787,109910.0,109900.0,0.08981901]
[1761873837804,0.57651688,109910.0,109900.0,0.08981901]
[1761873838421,0.18200018,109890.0,109880.0,0.00022171]
[1761873838761,0.91603919,109890.0,109880.0,0.00022171]
[1761873838962,0.18200018,109890.0,109880.0,0.00022171]
[1761873839592,0.18200018,109890.0,109880.0,0.02830171]
[1761873840334,0.18200018,109890.0,109880.0,0.00022171]
[1761873840522,0.18200018,109890.0,109850.0,0.0004]
[1761873840523,0.18204988,109860.0,109850.0,0.0004]
[1761873840718,0.18204988,109860.0,109850.0,0.13951661]
[1761873840922,0.18204988,109860.0,109850.0,0.17900661]
[1761873841565,0.18204988,109860.0,109850.0,0.13951661]
[1761873841725,0.18204988,109860.0,109850.0,0.14151661]
[1761873842241,0.18204988,109860.0,109850.0,0.13951661]
[1761873842440,0.18204988,109860.0,109850.0,0.17900661]
[1761873842658,0.18204988,109860.0,109850.0,0.18000661]
[1761873843480,0.18204988,109860.0,109850.0,0.3802797]
[1761873843697,0.18204988,109860.0,109850.0,0.62789493]
[1761873843900,0.18203331,109870.0,109850.0,0.70207306]
[1761873844078,0.18203331,109870.0,109860.0,0.49738901]
[1761873845299,0.18203331,109870.0,109860.0,0.49938901]
[1761873845499,0.19111757,109880.0,109860.0,1.12932721]
[1761873845686,0.19111757,109880.0,109870.0,0.10690333]
[1761873846090,0.19111757,109880.0,109870.0,0.19672234]
[1761873846290,0.19111757,109880.0,109870.0,0.53672234]
[1761873846500,0.19111757,109880.0,109870.0,0.51851901]
[1761873847036,0.19111757,109880.0,109870.0,0.52051901]
[1761873847633,0.19111757,109880.0,109870.0,0.43181901]
[1761873847842,0.19111757,109880.0,109870.0,0.48102901]
[1761873848282,0.19111757,109880.0,109870.0,0.52051901]
[1761873848667,0.19111757,109880.0,109870.0,0.14102901]
[1761873848865,0.19111757,109880.0,109870.0,0.14302901]
[1761873850729,0.19111757,109880.0,109870.0,0.20072234]
[1761873851011,0.19111757,109880.0,109870.0,0.18251901]
[1761873851217,0.19111757,109880.0,109870.0,0.18274076]
[1761873851771,0.19110018,109890.0,109870.0,0.36477407]
[1761873851972,0.19110018,109890.0,109880.0,0.17559068]
[1761873852178,0.19110018,109890.0,109880.0,0.15738901]
[1761873853767,0.6389885,109890.0,109880.0,0.15738901]
[1761873853969,0.6389885,109890.0,109880.0,0.11989901]
[1761873854363,0.6389885,109890.0,109880.0,0.09381901]
[1761873854590,0.6389885,109890.0,109880.0,0.004]
[1761873857630,0.6389885,109890.0,109880.0,0.02993]
[1761873857833,0.19110018,109890.0,109880.0,0.02993]
[1761873858288,0.19110018,109890.0,109880.0,0.004]
[1761873860118,0.19110018,109890.0,109880.0,0.02993]
[1761873861621,0.19110018,109890.0,109880.0,0.004]
[1761873863227,0.6389885,109890.0,109880.0,0.004]
[1761873864594,0.6389885,109890.0,109880.0,0.09381901]
[1761873864797,0.19110018,109890.0,109880.0,0.09381901]
[1761873867649,0.19110018,109890.0,109880.0,0.11974901]
[1761873868010,0.19110018,109890.0,109880.0,0.09381901]
[1761873870829,0.1910828,109900.0,109880.0,0.30176575]
[1761873871039,0.1910828,109900.0,109890.0,0.11574901]
[1761873871601,0.1910828,109900.0,109890.0,0.17309901]
[1761873871799,0.1910828,109900.0,109890.0,0.35509919]
[1761873871920,0.18247787,109910.0,109890.0,0.35509919]
[1761873872122,0.18247787,109910.0,109900.0,0.06423]
[1761873872324,0.18247787,109910.0,109900.0,0.15404901]
[1761873873247,0.18247787,109910.0,109900.0,0.17224737]
[1761873873447,0.18247787,109910.0,109900.0,0.35423099]
[1761873873654,0.19110948,109920.0,109900.0,0.33603263]
[1761873873854,0.19110948,109920.0,109910.0,0.15299571]
[1761873874061,0.19110948,109920.0,109910.0,0.19129571]
[1761873874606,0.19110948,109920.0,109910.0,0.37326277]
[1761873874810,0.19110948,109920.0,109910.0,0.35506607]
[1761873875055,0.19110948,109920.0,109910.0,0.35606607]
[1761873875404,0.19110948,109920.0,109910.0,0.35506607]
[1761873875606,0.19110948,109920.0,109910.0,0.35706607]
[1761873876002,0.19110948,109920.0,109910.0,0.17509901]
[1761873876272,0.19110948,109920.0,109910.0,0.19329571]
[1761873876660,0.19110948,109920.0,109910.0,0.37526277]
[1761873876914,0.19110948,109920.0,109910.0,0.35706607]
[1761873877291,0.19110948,109920.0,109910.0,0.35906607]
[1761873877449,0.1835038,109930.0,109910.0,0.35906607]
[1761873877655,0.18364845,109930.0,109920.0,0.06423]
[1761873877888,0.18364845,109930.0,109920.0,0.15404901]
[1761873878423,0.18356932,109930.0,109920.0,0.35419456]
[1761873878625,0.00163537,109930.0,109920.0,0.15404901]
[1761873878824,0.18356932,109930.0,109920.0,0.17224406]
[1761873879025,0.18356932,109930.0,109920.0,0.33799951]
[1761873879180,0.18356932,109930.0,109920.0,0.15604901]
[1761873880150,0.18356932,109930.0,109920.0,0.15804901]
[1761873880325,0.18356932,109930.0,109920.0,0.15404901]
[1761873880534,0.18356932,109930.0,109920.0,0.15704901]
[1761873880711,0.18356932,109930.0,109920.0,0.16004901]
[1761873881513,0.57738839,109930.0,109920.0,0.09581901]
[1761873881723,0.18356932,109930.0,109920.0,0.09581901]
[1761873881928,0.57738839,109930.0,109920.0,0.006]
[1761873882118,0.97120746,109930.0,109920.0,0.006]
[1761873882324,0.57738839,109930.0,109920.0,0.006]
[1761873883415,0.87161323,109930.0,109920.0,0.006]
[1761873883671,0.87161323,109930.0,109920.0,0.003]
[1761873883831,0.18196706,109910.0,109900.0,0.01905]
[1761873884065,0.18196706,109910.0,109900.0,0.13590901]
[1761873885284,0.18196706,109910.0,109900.0,0.13690901]
[1761873885876,0.18196706,109910.0,109900.0,0.17644901]
[1761873887359,0.18196706,109910.0,109900.0,0.17744901]
[1761873887558,0.18196706,109910.0,109900.0,0.37963099]
[1761873887790,0.18196706,109910.0,109900.0,0.17744901]
[1761873887993,0.18196706,109910.0,109900.0,0.17844901]
[1761873888220,0.18196706,109910.0,109900.0,0.18144901]
[1761873890165,0.18196706,109910.0,109900.0,0.14190901]
[1761873890896,0.18196706,109910.0,109900.0,0.13590901]
[1761873891340,0.18196706,109910.0,109900.0,0.13990901]
[1761873891746,0.18196706,109910.0,109900.0,0.17944901]
[1761873891956,0.18196468,109920.0,109900.0,0.37963099]
[1761873892107,0.18196468,109920.0,109910.0,0.15639901]
[1761873893070,0.18196468,109920.0,109910.0,0.11685901]
[1761873893854,0.18196468,109920.0,109910.0,0.16039901]
[1761873894051,0.18196468,109920.0,109910.0,0.34236607]
[1761873894052,0.1819505,109920.0,109910.0,0.34236607]
[1761873894285,0.19266601,109930.0,109910.0,0.34036607]
[1761873894479,0.19266601,109930.0,109920.0,0.06658]
[1761873894660,0.19266601,109930.0,109920.0,0.15639901]
[1761873895110,0.19266601,109930.0,109920.0,0.33834951]
[1761873895543,0.19266601,109930.0,109920.0,0.11685901]
[1761873896512,0.19266601,109930.0,109920.0,0.08981901]
[1761873896709,0.19266601,109930.0,109920.0,0.09181901]
[1761873896915,0.19266601,109930.0,109920.0,0.12085901]
[1761873900301,0.19266601,109930.0,109920.0,0.16039901]
[1761873900503,0.19266601,109930.0,109920.0,0.34234951]
[1761873901068,0.00163537,109930.0,109920.0,0.34234951]
[1761873901423,0.18356932,109930.0,109920.0,0.16039901]
[1761873901838,0.18356932,109930.0,109920.0,0.34234951]
[1761873901990,0.00163537,109930.0,109920.0,0.34234951]
[1761873902459,0.34,109960.0,109920.0,0.34234951]
[1761873902669,0.0002,109990.0,109950.0,3.95976378]
[1761873902890,0.0002,109990.0,109980.0,1.20989515]
[1761873902891,0.00034496,109990.0,109980.0,1.20989515]
[1761873903108,0.00034496,109990.0,109980.0,1.29645515]
[1761873903699,0.00034496,109990.0,109980.0,1.29745515]
[1761873903894,0.00034496,109990.0,109980.0,0.60941124]
[1761873904673,0.00034496,109990.0,109980.0,0.61241124]
[1761873905292,0.00034496,109990.0,109980.0,1.30345515]
[1761873906099,0.00034496,109990.0,109980.0,0.61541124]
[1761873906318,0.00034496,109990.0,109980.0,1.33963743]
[1761873907400,0.00034496,109990.0,109980.0,1.34863377]
[1761873910175,0.00034496,109990.0,109980.0,1.43845278]
[1761873910612,0.00167357,109990.0,109980.0,1.43845278]
[1761873912175,0.00167357,109990.0,109980.0,0.75040887]
[1761873912295,0.00167357,109990.0,109980.0,1.43845278]
[1761873912760,0.00167357,109990.0,109980.0,1.43745278]
[1761873913005,0.00167357,109990.0,109980.0,0.74940887]
[1761873913212,0.00167357,109990.0,109980.0,1.43745278]
[1761873913429,0.00167357,109990.0,109980.0,0.74940887]
[1761873913837,0.00167357,109990.0,109980.0,1.43745278]
[1761873916027,0.00167357,109990.0,109980.0,1.58315278]
[1761873916331,0.00167357,109990.0,109980.0,1.58415278]
[1761873916535,0.00167357,109990.0,109980.0,4.58415278]
[1761873921400,0.00167357,109990.0,109980.0,3.89610887]
[1761873921826,0.00167357,109990.0,109980.0,4.58415278]
[1761873923406,0.00167357,109990.0,109980.0,4.68243435]
[1761873924408,0.18180811,110030.0,110000.0,0.18181818]
[1761873924611,0.18178523,110020.0,110010.0,0.15190917]
[1761873924811,0.18193991,110030.0,110010.0,0.34344082]
[1761873925011,0.18193991,110030.0,110020.0,0.02567]
[1761873925251,0.18193991,110030.0,110020.0,0.13366752]
[1761873925795,0.18193991,110030.0,110020.0,0.16906752]
[1761873927532,0.55702837,110040.0,110020.0,0.16906752]
[1761873927738,0.18180739,110030.0,110020.0,0.16906752]
[1761873928165,0.19030394,110030.0,110020.0,0.16906752]
[1761873931056,0.19030394,110030.0,110020.0,0.11548901]
[1761873931428,0.19118912,110030.0,110020.0,0.11548901]
[1761873933249,0.19118912,110030.0,110020.0,0.13372901]
[1761873933452,0.19122231,110030.0,110020.0,0.13372901]
[1761873933648,0.19122231,110030.0,110020.0,0.08981901]
[1761873933649,0.87771516,110030.0,110020.0,0.08981901]
[1761873933884,0.89696595,110030.0,110020.0,0.08981901]
[1761873934924,0.2104731,110030.0,110020.0,0.08981901]
[1761873935334,0.19122231,110030.0,110020.0,0.08981901]
[1761873936870,0.18269257,110030.0,110020.0,0.08981901]
[1761873937256,0.18269257,110030.0,110020.0,0.11548901]
[1761873937461,0.18269257,110030.0,110020.0,0.08981901]
[1761873943744,0.18269257,110030.0,110020.0,0.11382901]
[1761873945427,0.18269257,110030.0,110020.0,0.13276901]
[1761873948934,0.18269257,110030.0,110020.0,0.36921264]
[1761873948935,0.18265378,110030.0,110020.0,0.36921264]
[1761873949137,0.18265378,110030.0,110020.0,0.35103413]
[1761873949515,0.18265378,110030.0,110020.0,0.13276901]
[1761873949918,0.18265378,110030.0,110020.0,0.31455413]
[1761873950139,0.18265378,110030.0,110020.0,0.35103413]
[1761873950573,0.00088518,110030.0,110020.0,0.35103413]
[1761873950786,0.18265378,110030.0,110020.0,0.35103413]
[1761873951360,0.18144954,110030.0,110020.0,0.35203413]
[1761873952539,0.5570357,110040.0,110020.0,0.35203413]
[1761873952754,0.5570357,110040.0,110030.0,0.11382901]
[1761873953217,0.1639139,110040.0,110030.0,0.08981901]
[1761873953420,0.5570357,110040.0,110030.0,0.08981901]
[1761873953722,0.5570357,110040.0,110030.0,0.11382901]
[1761873954014,0.5570357,110040.0,110030.0,0.08981901]
[1761873954215,0.9501575,110040.0,110030.0,0.08981901]
[1761873958503,0.95037874,110040.0,110030.0,0.08981901]
[1761873959614,0.16413514,110040.0,110030.0,0.08981901]
[1761873959819,0.55725694,110040.0,110030.0,0.08981901]
[1761873960021,0.1820216,110040.0,110030.0,0.13276901]
[1761873960231,0.1820216,110040.0,110030.0,0.16924901]
[1761873960438,0.5751434,110040.0,110030.0,0.16924901]
[1761873962379,0.1820216,110040.0,110030.0,0.16924901]
[1761873965266,0.00026951,110040.0,110030.0,0.35101761]
[1761873966734,0.1820216,110040.0,110030.0,0.35101761]
[1761873967164,0.1820216,110040.0,110030.0,0.35201761]
[1761873969576,0.00026951,110040.0,110030.0,0.35201761]
[1761873969991,0.00026951,110040.0,110030.0,0.35124589]
[1761873970328,0.00026951,110040.0,110030.0,0.74436769]
[1761873970466,0.00026951,110040.0,110030.0,0.35124589]
[1761873972556,0.00026951,110040.0,110030.0,0.74436769]
[1761873972993,0.00026951,110040.0,110030.0,0.35124589]
[1761873973814,0.1820216,110040.0,110030.0,0.35124589]
[1761873975262,0.18175209,110040.0,110030.0,1.08436769]
[1761873975820,0.18175209,110040.0,110030.0,0.69124589]
[1761873976037,0.18175209,110040.0,110030.0,1.08436769]
[1761873976634,0.18175209,110040.0,110030.0,0.69124589]
[1761873976987,0.18173557,110050.0,110030.0,1.08436769]
[1761873977196,0.18173557,110050.0,110040.0,0.08327]
[1761873977396,0.18173557,110050.0,110040.0,0.13489901]
[1761873979680,0.18173557,110050.0,110040.0,0.17308901]
[1761873979833,0.18173557,110050.0,110040.0,0.3548411]
[1761873980050,0.21814716,110070.0,110050.0,0.18173557]
[1761873980248,0.18170334,110070.0,110060.0,0.33478997]
[1761873980472,0.18170334,110070.0,110060.0,0.13489901]
[1761873981384,0.18170334,110070.0,110060.0,0.17308901]
[1761873982267,0.18170334,110070.0,110060.0,0.13489901]
[1761873982485,0.18170334,110070.0,110060.0,0.17308901]
[1761873983799,0.18170334,110070.0,110060.0,0.17408901]
[1761873984199,0.18236683,110070.0,110060.0,0.17408901]
[1761873984568,0.18236683,110070.0,110060.0,0.56721081]
[1761873984768,0.57548863,110070.0,110060.0,0.001]
[1761873985084,0.66530764,110070.0,110060.0,0.001]
[1761873985674,0.69261421,110070.0,110060.0,0.001]
[1761873985877,0.18175209,110040.0,110030.0,0.8266468]
[1761873986070,0.18175209,110040.0,110030.0,0.90737738]
[1761873986292,0.18175209,110040.0,110030.0,0.93289738]
[1761873987138,0.18175209,110040.0,110030.0,1.11466598]
[1761873987346,0.18175209,110040.0,110030.0,1.12166598]
[1761873987706,0.18175209,110040.0,110030.0,0.93989738]
[1761873988397,0.18175209,110040.0,110030.0,1.12166598]
[1761873988611,0.18197092,110050.0,110030.0,1.12166598]
[1761873988833,0.18175209,110040.0,110030.0,0.61320517]
[1761873988959,0.18175209,110040.0,110030.0,0.43143657]
[1761873989307,0.18175209,110040.0,110030.0,0.63872517]
[1761873989610,0.18175209,110040.0,110030.0,0.54677558]
[1761873989754,0.18175209,110040.0,110030.0,0.72854418]
[1761873989984,0.18175209,110040.0,110030.0,1.11766598]
[1761873990400,0.18175209,110040.0,110030.0,0.72654418]
[1761873990886,0.18175209,110040.0,110030.0,1.11766598]
[1761873991372,0.18197092,110050.0,110030.0,1.12166598]
[1761873991506,0.18197092,110050.0,110040.0,0.52802081]
[1761873992424,0.18197092,110050.0,110040.0,0.13489901]
[1761873992624,0.18197092,110050.0,110040.0,0.52802081]
[1761873994262,0.18197092,110050.0,110040.0,0.53002081]
[1761873994698,0.18197092,110050.0,110040.0,0.53202081]
[1761873996822,0.18197092,110050.0,110040.0,0.48694081]
[1761873998244,0.18197092,110050.0,110040.0,0.09381901]
[1761873998408,0.18197092,110050.0,110040.0,0.48694081]
[1761873999494,0.57509272,110050.0,110040.0,0.004]
[1761874001376,0.57509478,110050.0,110040.0,0.004]
[1761874004070,0.1817686,110030.0,110020.0,0.34]
[1761874004272,0.18178512,110020.0,110010.0,0.35956]
[1761874004423,0.18178512,110020.0,110010.0,0.38429827]
[1761874004784,0.18178512,110020.0,110010.0,0.42369827]
[1761874005029,0.18178512,110020.0,110010.0,0.77742213]
[1761874005533,0.18178512,110020.0,110010.0,0.38429827]
[1761874005771,0.18178512,110020.0,110010.0,0.77742213]
[1761874006478,0.18178512,110020.0,110010.0,0.86724114]
[1761874006892,0.18178512,110020.0,110010.0,0.43386728]
[1761874007272,0.18178512,110020.0,110010.0,0.43686728]
[1761874010381,0.6484975,110020.0,110010.0,0.00704827]
[1761874010582,0.6484975,110020.0,110010.0,0.00304827]
[1761874011009,0.6484975,110020.0,110010.0,4.827e-05]
[1761874011161,0.65759538,110020.0,110010.0,4.827e-05]
[1761874011361,0.65759538,110020.0,110010.0,0.00204827]
[1761874011565,0.6484975,110020.0,110010.0,4.827e-05]
[1761874012021,0.6484975,110020.0,110010.0,0.00304827]
[1761874012228,0.18178512,110020.0,110010.0,0.00304827]
[1761874012430,0.18178512,110020.0,110010.0,0.11555728]
[1761874012655,0.16097622,110030.0,110010.0,0.74982279]
[1761874012857,0.16097622,110030.0,110020.0,0.13444901]
[1761874013240,0.16097622,110030.0,110020.0,0.19202752]
[1761874013612,0.16097622,110030.0,110020.0,0.17384901]
[1761874014252,0.16097622,110030.0,110020.0,0.35563413]
[1761874014453,0.16097622,110030.0,110020.0,0.35763413]
[1761874014912,0.16097622,110030.0,110020.0,0.35963413]
[1761874015151,0.16097622,110030.0,110020.0,0.17784901]
[1761874015353,0.16097622,110030.0,110020.0,0.09381901]
[1761874015711,0.16097622,110030.0,110020.0,0.004]
[1761874018794,0.16097622,110030.0,110020.0,0.31847264]
[1761874018983,0.16097622,110030.0,110020.0,0.75275799]
[1761874019183,0.16097622,110030.0,110020.0,0.48694287]
[1761874019416,0.16097622,110030.0,110020.0,0.09381901]
[1761874019633,0.16097622,110030.0,110020.0,0.09181901]
[1761874019845,0.16097622,110030.0,110020.0,0.11650901]
[1761874020055,0.16097622,110030.0,110020.0,0.11850901]
[1761874020265,0.16097622,110030.0,110020.0,0.09381901]
[1761874020471,0.16097622,110030.0,110020.0,0.09181901]
[1761874020661,0.16097622,110030.0,110020.0,0.09381901]
[1761874021093,0.16097622,110030.0,110020.0,0.09181901]
[1761874021448,0.16097622,110030.0,110020.0,0.006]
[1761874022079,0.63132679,110030.0,110020.0,0.004]
[1761874022276,0.23820293,110030.0,110020.0,0.007]
[1761874022527,0.16097622,110030.0,110020.0,0.007]
[1761874025350,0.16097622,110030.0,110020.0,0.16090901]
[1761874027302,0.16097622,110030.0,110020.0,0.12150901]
[1761874027689,0.16097622,110030.0,110020.0,0.14882035]
[1761874028422,0.16097622,110030.0,110020.0,0.12413035]
[1761874028748,0.16097622,110030.0,110020.0,0.09681901]
[1761874029650,0.19085398,110040.0,110020.0,0.69641799]
[1761874029855,0.19105769,110050.0,110030.0,0.70934147]
[1761874030066,0.19105769,110050.0,110040.0,0.43598906]
[1761874030199,0.0002212,110050.0,110040.0,0.68938496]
[1761874030396,0.0002212,110050.0,110040.0,1.02938496]
[1761874031343,0.0002212,110050.0,110040.0,1.36164201]
[1761874031555,0.0002212,110050.0,110040.0,1.36464201]
[1761874032200,0.0002212,110050.0,110040.0,1.36864201]
[1761874034895,0.0002212,110050.0,110040.0,0.6432611]
[1761874035291,0.18195677,110050.0,110040.0,0.6432611]
[1761874036928,0.0002212,110050.0,110040.0,1.36822201]
[1761874038242,0.0002212,110050.0,110040.0,1.36422201]
[1761874038637,0.0002212,110050.0,110040.0,1.36922201]
[1761874038846,0.1806896,110070.0,110050.0,0.52173557]
[1761874039108,0.1806896,110070.0,110060.0,0.08981901]
[1761874039935,0.18117242,110070.0,110060.0,0.08981901]
[1761874041514,0.18117242,110070.0,110060.0,0.09381901]
[1761874042201,0.18117242,110070.0,110060.0,0.004]
[1761874042441,0.86715333,110070.0,110060.0,0.004]
[1761874043188,0.86715333,110070.0,110010.0,0.24981133]
[1761874043189,0.18178512,110020.0,110010.0,0.01994]
[1761874043434,0.18178287,110030.0,110010.0,0.31746066]
[1761874043656,0.18178287,110030.0,110020.0,0.42981901]
[1761874044094,0.18178287,110030.0,110020.0,0.08981901]
[1761874044590,0.18178287,110030.0,110020.0,0.42986728]
[1761874045524,0.1817686,110030.0,110020.0,0.49874728]
[1761874045730,0.1817686,110030.0,110020.0,0.43386728]
[1761874045934,0.1817686,110030.0,110020.0,0.43886728]
[1761874046737,0.1817686,110030.0,110020.0,0.09886728]
[1761874047631,0.1817686,110030.0,110020.0,0.00904827]
[1761874048741,0.1817686,110030.0,110020.0,0.00404827]
[1761874049352,0.90459203,110030.0,110020.0,4.827e-05]
[1761874050793,0.90582031,110030.0,110020.0,4.827e-05]
[1761874052592,0.91487994,110030.0,110020.0,4.827e-05]
[1761874053986,0.70940644,110030.0,110020.0,4.827e-05]
[1761874054226,0.89117504,110030.0,110020.0,4.827e-05]
[1761874054779,1.0081167,110030.0,110020.0,4.827e-05]
[1761874056517,1.3481167,110030.0,110020.0,4.827e-05]
[1761874057088,1.35811669,110030.0,110020.0,4.827e-05]
[1761874057502,3.36811668,110030.0,110020.0,4.827e-05]
[1761874059085,3.35811669,110030.0,110020.0,4.827e-05]
[1761874059482,3.36811668,110030.0,110020.0,4.827e-05]
[1761874062138,3.46392668,110030.0,110020.0,4.827e-05]
[1761874062610,3.45156078,110030.0,110020.0,4.827e-05]
[1761874063349,3.21263646,110030.0,110020.0,4.827e-05]
[1761874063731,3.11682646,110030.0,110020.0,4.827e-05]
[1761874066107,2.9313304,110030.0,110020.0,4.827e-05]
[1761874066336,3.113099,110030.0,110020.0,4.827e-05]
[1761874066670,3.13642188,110030.0,110020.0,4.827e-05]
[1761874066882,3.113099,110030.0,110020.0,4.827e-05]
[1761874069206,1.09309902,110030.0,110020.0,4.827e-05]
[1761874071136,0.64604243,110030.0,110020.0,4.827e-05]
[1761874071559,1.09309902,110030.0,110020.0,4.827e-05]
[1761874075392,1.03933722,110030.0,110020.0,4.827e-05]
[1761874076181,0.69933722,110030.0,110020.0,4.827e-05]
[1761874076385,0.57506339,110030.0,110020.0,4.827e-05]
[1761874077211,0.1817686,110030.0,110020.0,0.43555306]
[1761874077526,0.1817686,110030.0,110020.0,0.04225827]
[1761874078083,0.1817686,110030.0,110020.0,0.08109827]
[1761874078288,0.1817686,110030.0,110020.0,0.47439306]
[1761874078859,0.1817686,110030.0,110020.0,0.04225827]
[1761874079721,0.1817686,110030.0,110020.0,0.04425827]
[1761874080841,0.1817686,110030.0,110020.0,0.04525827]
[1761874081045,0.1817686,110030.0,110020.0,0.08409827]
[1761874081257,0.1817686,110030.0,110020.0,0.04525827]
[1761874082214,0.1817686,110030.0,110020.0,0.08409827]
[1761874087907,0.19083969,110040.0,110020.0,0.37388091]
[1761874088108,0.19083969,110040.0,110030.0,0.04221]
[1761874088655,0.18175209,110040.0,110030.0,0.35263761]
[1761874089523,0.18175209,110040.0,110030.0,0.35463761]
[1761874091111,0.18175209,110040.0,110030.0,0.35563761]
[1761874092297,0.18174983,110050.0,110030.0,0.35563761]
[1761874092500,0.18175209,110040.0,110030.0,0.32872761]
[1761874092843,0.18174983,110050.0,110040.0,0.22059209]
[1761874093218,0.18174983,110050.0,110040.0,0.08105]
[1761874093354,0.18174983,110050.0,110040.0,0.26280209]
[1761874093561,0.18174983,110050.0,110040.0,0.3526211]
[1761874093760,0.18173557,110050.0,110040.0,0.3526211]
[1761874095148,0.19105373,110060.0,110040.0,0.3526211]
[1761874095353,0.00022119,110060.0,110050.0,0.04242]
[1761874095847,0.18196947,110060.0,110050.0,0.04242]
[1761874095979,0.18196947,110060.0,110050.0,0.08085]
[1761874096151,0.18196947,110060.0,110050.0,0.04242]
[1761874096979,0.19105542,110060.0,110050.0,0.04242]
[1761874097453,0.19105542,110060.0,110050.0,0.26085557]
[1761874097664,0.00022119,110060.0,110050.0,0.26085557]
[1761874097845,0.00022119,110060.0,110050.0,0.35267458]
[1761874098363,0.00022119,110060.0,110050.0,0.35367458]
[1761874099531,0.00022119,110060.0,110050.0,0.74655027]
[1761874099532,0.18194025,110060.0,110050.0,0.74655027]
[1761874099713,0.18194025,110060.0,110050.0,1.08655027]
[1761874099714,0.00022119,110060.0,110050.0,1.08655027]
[1761874101313,0.00022119,110060.0,110050.0,1.08455027]
[1761874101742,0.00022119,110060.0,110050.0,1.08755027]
[1761874102095,0.18194025,110060.0,110050.0,1.08955027]
[1761874102478,0.96769163,110060.0,110050.0,0.006]
[1761874103574,0.96769163,110060.0,110050.0,0.002]